fUSD/lending_fUSD_20250610
["ID","MTS","AMOUNT","RATE_DAILY","PERIOD"]
[365188446,1749525079027,-456.84945582,0.0001726,2]
[365188447,1749525079037,-490.0,0.0001726,2]
[365188448,1749525079046,-490.0,0.0001726,2]
[365188449,1749525079056,-456.59952722,0.0001726,2]
[365188450,1749525079066,-490.0,0.0001726,2]
[365188451,1749525079076,-332.81538371,0.0001726,2]
[365188452,1749525079085,-757.61,0.0001726,2]
[365188453,1749525079095,-490.0,0.0001726,2]
[365188454,1749525079104,-416.44851009,0.0001726,2]
[365188455,1749525079114,-490.0,0.0001726,2]
[365188456,1749525079124,-490.0,0.0001726,2]
[365188457,1749525079133,-490.0,0.0001726,2]
[365188458,1749525079143,-490.0,0.0001726,2]
[365188459,1749525079153,-434.40211852,0.0001726,2]
[365188460,1749525079163,-490.0,0.0001726,2]
[365188461,1749525079172,-1761.99,0.0001726,2]
[365188462,1749525079183,-498.01,0.0001726,2]
[365188463,1749525079193,-490.0,0.0001726,2]
[365188464,1749525079203,-626.78,0.0001726,2]
[365188465,1749525079212,-490.0,0.0001726,2]
[365188466,1749525079222,-2487.15,0.0001726,2]
[365188467,1749525079233,-444.05185678,0.0001726,2]
[365188468,1749525079243,-490.0,0.0001726,2]
[365188469,1749525079252,-490.0,0.0001726,2]
[365188470,1749525079263,-490.0,0.0001726,2]
[365188471,1749525079272,-490.0,0.0001726,2]
[365188472,1749525079282,-490.0,0.0001726,2]
[365188473,1749525079291,-490.0,0.0001726,2]
[365188474,1749525079301,-439.94281469,0.0001726,2]
[365188475,1749525079311,-996.35,0.0001726,2]
[365188476,1749525079320,-490.0,0.0001726,2]
[365188477,1749525079329,-591.43,0.0001726,2]
[365188478,1749525079339,-526.34154389,0.0001726,2]
[365188479,1749525079349,-490.0,0.0001726,2]
[365188480,1749525079362,-553.91,0.0001726,2]
[365188481,1749525079373,-486.3667691,0.0001726,2]
[365188482,1749525079383,-490.0,0.0001726,2]
[365188483,1749525079394,-490.0,0.0001726,2]
[365188484,1749525079405,-490.0,0.0001726,2]
[365188485,1749525079415,-490.0,0.0001726,2]
[365188486,1749525079424,-490.0,0.0001726,2]
[365188487,1749525079433,-490.0,0.0001726,2]
[365188488,1749525079443,-490.0,0.0001726,2]
[365188489,1749525079453,-490.0,0.0001726,2]
[365188490,1749525079463,-490.0,0.0001726,2]
[365188491,1749525079473,-673.4,0.0001726,2]
[365188492,1749525079483,-490.0,0.0001726,2]
[365188493,1749525079494,-490.0,0.0001726,2]
[365188494,1749525079504,-490.0,0.0001726,2]
[365188495,1749525079514,-595.43,0.0001726,2]
[365188496,1749525079524,-490.0,0.0001726,2]
[365188497,1749525079534,-490.0,0.0001726,2]
[365188498,1749525079544,-1580.0,0.0001726,2]
[365188499,1749525079554,-3953.88,0.0001726,2]
[365188500,1749525079564,-605.59,0.0001726,2]
[365188501,1749525079574,-490.0,0.0001726,2]
[365188502,1749525079584,-490.0,0.0001726,2]
[365188503,1749525079597,-490.0,0.0001726,2]
[365188504,1749525079607,-490.0,0.0001726,2]
[365188505,1749525079617,-490.0,0.0001726,2]
[365188506,1749525079627,-490.0,0.0001726,2]
[365188507,1749525079637,-490.0,0.0001726,2]
[365188508,1749525079647,-490.0,0.0001726,2]
[365188509,1749525079657,-608.60232357,0.0001726,2]
[365188510,1749525079668,-1687.14,0.0001726,2]
[365188511,1749525079677,-490.0,0.0001726,2]
[365188512,1749525079687,-490.0,0.0001726,2]
[365188513,1749525079697,-490.0,0.0001726,2]
[365188514,1749525079707,-374.57127583,0.0001726,2]
[365188515,1749525079717,-835.39,0.0001726,2]
[365188516,1749525079726,-490.0,0.0001726,2]
[365188517,1749525079736,-490.0,0.0001726,2]
[365188518,1749525079746,-349.54770085,0.0001726,2]
[365188519,1749525079755,-505.25847737,0.0001726,2]
[365188520,1749525079766,-988.78,0.0001726,2]
[365188521,1749525079778,-509.02,0.0001726,2]
[365188522,1749525079789,-490.0,0.0001726,2]
[365188523,1749525079800,-412.68371636,0.0001726,2]
[365188524,1749525079810,-490.0,0.0001726,2]
[365188525,1749525079819,-490.0,0.0001726,2]
[365188526,1749525079830,-520.99,0.0001726,2]
[365188527,1749525079839,-490.0,0.0001726,2]
[365188528,1749525079849,-490.0,0.0001726,2]
[365188529,1749525079859,-490.0,0.0001726,2]
[365188530,1749525079868,-490.0,0.0001726,2]
[365188531,1749525079878,-565.49708711,0.0001726,2]
[365188532,1749525079888,-490.0,0.0001726,2]
[365188533,1749525079897,-490.0,0.0001726,2]
[365188534,1749525079907,-594.86965516,0.0001726,2]
[365188535,1749525079917,-490.0,0.0001726,2]
[365188536,1749525079927,-490.0,0.0001726,2]
[365188537,1749525079937,-190.767625,0.0001726,2]
[365188538,1749525079947,-490.0,0.0001726,2]
[365188539,1749525079957,-874.46,0.0001726,2]
[365188540,1749525079967,-490.0,0.0001726,2]
[365188541,1749525079976,-490.0,0.0001726,2]
[365188542,1749525079986,-154.06670668,0.0001726,2]
[365188543,1749525079995,-1615.08,0.0001726,2]
[365188544,1749525080005,-223.3174465,0.0001726,2]
[365188545,1749525080015,-490.0,0.0001726,2]
[365188546,1749525080025,-490.0,0.0001726,2]
[365188547,1749525080034,-529.84,0.0001726,2]
[365188548,1749525080044,-490.0,0.0001726,2]
[365188549,1749525080054,-1075.4,0.0001726,2]
[365188550,1749525080065,-655.8,0.0001726,2]
[365188551,1749525080075,-490.0,0.0001726,2]
[365188552,1749525080085,-553.14,0.0001726,2]
[365188553,1749525080095,-709.07,0.0001726,2]
[365188554,1749525080105,-1655.79,0.0001726,2]
[365188555,1749525080115,-490.0,0.0001726,2]
[365188556,1749525080124,-2379.12,0.0001726,2]
[365188557,1749525080134,-490.0,0.0001726,2]
[365188558,1749525080143,-490.0,0.0001726,2]
[365188559,1749525080153,-637.09,0.0001726,2]
[365188560,1749525080163,-1068.67,0.0001726,2]
[365188561,1749525080172,-490.0,0.0001726,2]
[365188562,1749525080182,-490.0,0.0001726,2]
[365188563,1749525080192,-490.0,0.0001726,2]
[365188564,1749525080202,-490.0,0.0001726,2]
[365188565,1749525080211,-426.11899253,0.0001726,2]
[365188566,1749525080221,-927.29,0.0001726,2]
[365188567,1749525080230,-490.0,0.0001726,2]
[365188568,1749525080240,-739.16,0.0001726,2]
[365188569,1749525080250,-848.47,0.0001726,2]
[365188570,1749525080260,-490.0,0.0001726,2]
[365188571,1749525080270,-490.0,0.0001726,2]
[365188572,1749525080279,-490.0,0.0001726,2]
[365188573,1749525080288,-490.0,0.0001726,2]
[365188574,1749525080298,-490.0,0.0001726,2]
[365188575,1749525080308,-490.0,0.0001726,2]
[365188576,1749525080318,-1641.81,0.0001726,2]
[365188577,1749525080327,-2238.41,0.0001726,2]
[365188578,1749525080337,-490.0,0.0001726,2]
[365188579,1749525080346,-490.0,0.0001726,2]
[365188580,1749525080356,-659.57,0.0001726,2]
[365188581,1749525080365,-490.0,0.0001726,2]
[365188582,1749525080376,-490.0,0.0001726,2]
[365188583,1749525080386,-490.0,0.0001726,2]
[365188584,1749525080396,-1065.02,0.0001726,2]
[365188585,1749525080406,-1338.38,0.0001726,2]
[365188586,1749525080416,-490.0,0.0001726,2]
[365188587,1749525080426,-490.0,0.0001726,2]
[365188588,1749525080437,-490.0,0.0001726,2]
[365188589,1749525080447,-490.0,0.0001726,2]
[365188590,1749525080458,-490.0,0.0001726,2]
[365188591,1749525080467,-490.0,0.0001726,2]
[365188592,1749525080477,-490.0,0.0001726,2]
[365188593,1749525080487,-490.0,0.0001726,2]
[365188594,1749525080498,-490.0,0.0001726,2]
[365188595,1749525080507,-1000.0,0.0001726,2]
[365188596,1749525080517,-897.68,0.0001726,2]
[365188597,1749525080527,-490.0,0.0001726,2]
[365188598,1749525080537,-490.0,0.0001726,2]
[365188599,1749525080548,-517.29,0.0001726,2]
[365188600,1749525080557,-490.0,0.0001726,2]
[365188601,1749525080568,-639.59,0.0001726,2]
[365188602,1749525080578,-490.0,0.0001726,2]
[365188603,1749525080588,-490.0,0.0001726,2]
[365188604,1749525080601,-490.0,0.0001726,2]
[365188605,1749525080611,-490.0,0.0001726,2]
[365188606,1749525080621,-490.0,0.0001726,2]
[365188607,1749525080631,-490.0,0.0001726,2]
[365188608,1749525080640,-1634.79,0.0001726,2]
[365188609,1749525080650,-795.78,0.0001726,2]
[365188610,1749525080659,-490.0,0.0001726,2]
[365188611,1749525080670,-490.0,0.0001726,2]
[365188612,1749525080683,-490.0,0.0001726,2]
[365188613,1749525080693,-490.0,0.0001726,2]
[365188614,1749525080702,-499.37,0.0001726,2]
[365188615,1749525080711,-1983.09,0.0001726,2]
[365188616,1749525080720,-490.0,0.0001726,2]
[365188617,1749525080730,-490.0,0.0001726,2]
[365188618,1749525080739,-490.0,0.0001726,2]
[365188619,1749525080748,-1184.87,0.0001726,2]
[365188620,1749525080758,-420.0,0.0001726,2]
[365188621,1749525080767,-42056.12,0.0001726,2]
[365188622,1749525080777,-490.0,0.0001726,2]
[365188623,1749525080786,-449.80214973,0.0001726,2]
[365188624,1749525080796,-490.0,0.0001726,2]
[365188625,1749525080806,-490.0,0.0001726,2]
[365188626,1749525080817,-490.0,0.0001726,2]
[365188627,1749525080826,-490.0,0.0001726,2]
[365188628,1749525080835,-490.0,0.0001726,2]
[365188629,1749525080844,-490.0,0.0001726,2]
[365188630,1749525080853,-605.98,0.0001726,2]
[365188631,1749525080862,-491.03,0.0001726,2]
[365188632,1749525080871,-497.21,0.0001726,2]
[365188633,1749525080880,-611.73,0.0001726,2]
[365188634,1749525080889,-730.26,0.0001726,2]
[365188635,1749525080899,-1437.03,0.0001726,2]
[365188636,1749525080908,-490.0,0.0001726,2]
[365188637,1749525080917,-4445.982985,0.0001726,2]
[365188638,1749525080927,-490.0,0.0001726,2]
[365188639,1749525080936,-490.0,0.0001726,2]
[365188640,1749525080945,-490.0,0.0001726,2]
[365188641,1749525080954,-835.66,0.0001726,2]
[365188642,1749525080964,-2241.0,0.00017265,2]
[365188643,1749525080973,-295.0,0.0001731,2]
[365188644,1749525080983,-379.0,0.00017317,4]
[365188645,1749525080992,-1138.35427651,0.00017321,2]
[365188646,1749525081002,-1002.00124222,0.00017321,2]
[365188647,1749525081011,-1000.0,0.00017321,2]
[365188648,1749525081020,-449.93,0.00017349,2]
[365188649,1749525081030,-2241.0,0.00017362,2]
[365188650,1749525081039,-438.27,0.00017369,2]
[365188651,1749525081048,-5554.04029648,0.00017384,2]
[365188652,1749525081057,-500.0,0.00017423,2]
[365188653,1749525081068,-730.31,0.00017423,2]
[365188654,1749525081077,-950.89,0.00017423,2]
[365188655,1749525081086,-664.92,0.00017423,2]
[365188656,1749525081096,-500.0,0.00017423,2]
[365188657,1749525081105,-300.0,0.00017423,2]
[365188658,1749525081115,-490.0,0.00017424,2]
[365188659,1749525081124,-490.0,0.00017424,2]
[365188660,1749525081133,-490.0,0.00017424,2]
[365188661,1749525081142,-490.0,0.00017424,2]
[365188662,1749525081152,-490.0,0.00017424,2]
[365188663,1749525081161,-490.0,0.00017424,2]
[365188664,1749525081170,-490.0,0.00017424,2]
[365188665,1749525081180,-503.0,0.00017424,2]
[365188666,1749525081189,-706.89,0.00017424,2]
[365188667,1749525081199,-490.0,0.00017424,2]
[365188668,1749525081208,-190.88031918,0.00017424,2]
[365188669,1749525081217,-490.0,0.00017424,2]
[365188670,1749525081226,-665.87,0.00017424,2]
[365188671,1749525081235,-490.0,0.00017424,2]
[365188672,1749525081245,-490.0,0.00017424,2]
[365188673,1749525081254,-490.0,0.00017424,2]
[365188674,1749525081263,-504.72,0.00017424,2]
[365188675,1749525081273,-579.14,0.00017424,2]
[365188676,1749525081283,-490.0,0.00017424,2]
[365188677,1749525081292,-206.96240907,0.00017424,2]
[365188678,1749525081302,-490.0,0.00017424,2]
[365188679,1749525081311,-490.0,0.00017424,2]
[365188680,1749525081320,-490.0,0.00017424,2]
[365188681,1749525081330,-518.52050256,0.00017424,2]
[365188682,1749525081339,-665.32,0.00017424,2]
[365188683,1749525081348,-490.0,0.00017424,2]
[365188684,1749525081357,-490.0,0.00017424,2]
[365188685,1749525081367,-490.0,0.00017424,2]
[365188686,1749525081376,-490.0,0.00017424,2]
[365188687,1749525081387,-490.0,0.00017424,2]
[365188688,1749525081397,-490.0,0.00017424,2]
[365188689,1749525081407,-490.0,0.00017424,2]
[365188690,1749525081416,-440.86796958,0.00017424,2]
[365188691,1749525081425,-248.7940204,0.00017424,2]
[365188692,1749525081435,-490.0,0.00017424,2]
[365188693,1749525081444,-490.0,0.00017424,2]
[365188694,1749525081453,-490.0,0.00017424,2]
[365188695,1749525081463,-490.0,0.00017424,2]
[365188696,1749525081472,-644.96,0.00017424,2]
[365188697,1749525081481,-629.26633043,0.00017424,2]
[365188698,1749525081491,-412.44882698,0.00017424,2]
[365188699,1749525081501,-355.19076651,0.00017424,2]
[365188700,1749525081511,-490.0,0.00017424,2]
[365188701,1749525081521,-614.43,0.00017424,2]
[365188702,1749525081530,-490.0,0.00017424,2]
[365188703,1749525081539,-490.0,0.00017424,2]
[365188704,1749525081549,-502.17191618,0.00017424,2]
[365188705,1749525081560,-490.0,0.00017424,2]
[365188706,1749525081569,-490.0,0.00017424,2]
[365188707,1749525081579,-490.0,0.00017424,2]
[365188708,1749525081589,-862.63,0.00017424,2]
[365188709,1749525081601,-2092.76,0.00017424,2]
[365188710,1749525081611,-490.0,0.00017424,2]
[365188711,1749525081621,-490.0,0.00017424,2]
[365188712,1749525081630,-490.0,0.00017424,2]
[365188713,1749525081641,-490.0,0.00017424,2]
[365188714,1749525081651,-205.35353638,0.00017424,2]
[365188715,1749525081661,-490.0,0.00017424,2]
[365188716,1749525081671,-490.0,0.00017424,2]
[365188717,1749525081681,-490.0,0.00017424,2]
[365188718,1749525081691,-490.0,0.00017424,2]
[365188719,1749525081700,-597.22,0.00017424,2]
[365188720,1749525081709,-421.84623512,0.00017424,2]
[365188721,1749525081719,-594.6863739,0.00017424,2]
[365188722,1749525081729,-490.0,0.00017424,2]
[365188723,1749525081739,-316.54560034,0.00017424,2]
[365188724,1749525081752,-469.62155339,0.00017424,2]
[365188725,1749525081762,-518.1768678,0.00017424,2]
[365188726,1749525081772,-432.46089338,0.00017424,2]
[365188727,1749525081781,-490.0,0.00017424,2]
[365188728,1749525081792,-490.0,0.00017424,2]
[365188729,1749525081801,-490.0,0.00017424,2]
[365188730,1749525081811,-490.0,0.00017424,2]
[365188731,1749525081821,-200.29005559,0.00017424,2]
[365188732,1749525081831,-496.63,0.00017424,2]
[365188733,1749525081841,-509.48231875,0.00017424,2]
[365188734,1749525081850,-490.0,0.00017424,2]
[365188735,1749525081859,-490.0,0.00017424,2]
[365188736,1749525081869,-490.0,0.00017424,2]
[365188737,1749525081879,-281.01587627,0.00017424,2]
[365188738,1749525081888,-490.0,0.00017424,2]
[365188739,1749525081898,-490.0,0.00017424,2]
[365188740,1749525081907,-490.0,0.00017424,2]
[365188741,1749525081917,-490.0,0.00017424,2]
[365188742,1749525081926,-490.0,0.00017424,2]
[365188743,1749525081935,-490.0,0.00017424,2]
[365188744,1749525081945,-565.28,0.00017424,2]
[365188745,1749525081954,-490.0,0.00017424,2]
[365188746,1749525081963,-490.0,0.00017424,2]
[365188747,1749525081973,-490.0,0.00017424,2]
[365188748,1749525081983,-490.0,0.00017424,2]
[365188749,1749525081992,-448.68678124,0.00017424,2]
[365188750,1749525082002,-490.0,0.00017424,2]
[365188751,1749525082011,-199.233024,0.00017424,2]
[365188752,1749525082021,-490.0,0.00017424,2]
[365188753,1749525082030,-490.0,0.00017424,2]
[365188754,1749525082040,-589.76396296,0.00017424,2]
[365188755,1749525082049,-490.0,0.00017424,2]
[365188756,1749525082058,-446.11578756,0.00017424,2]
[365188757,1749525082068,-537.96,0.00017424,2]
[365188758,1749525082077,-915.11,0.00017424,2]
[365188759,1749525082087,-490.0,0.00017424,2]
[365188760,1749525082096,-490.0,0.00017424,2]
[365188761,1749525082105,-490.0,0.00017424,2]
[365188762,1749525082114,-490.0,0.00017424,2]
[365188763,1749525082123,-556.18,0.00017424,2]
[365188764,1749525082132,-490.0,0.00017424,2]
[365188765,1749525082142,-490.0,0.00017424,2]
[365188766,1749525082151,-490.0,0.00017424,2]
[365188767,1749525082160,-535.23,0.00017424,2]
[365188768,1749525082169,-490.0,0.00017424,2]
[365188769,1749525082178,-431.1493117,0.00017424,2]
[365188770,1749525082187,-3774.302836,0.00017424,2]
[365188771,1749525082196,-490.0,0.00017424,2]
[365188772,1749525082205,-477.95941697,0.00017424,2]
[365188773,1749525082214,-490.0,0.00017424,2]
[365188774,1749525082223,-2294.03,0.00017424,2]
[365188775,1749525082233,-722.61,0.00017424,2]
[365188776,1749525082242,-490.0,0.00017424,2]
[365188777,1749525082456,-282.40397156,0.00017424,2]
[365188778,1749525082466,-403.82469164,0.00017424,2]
[365188779,1749525082475,-757.61,0.00017424,2]
[365188780,1749525082485,-490.0,0.00017424,2]
[365188781,1749525082494,-490.0,0.00017424,2]
[365188782,1749525082503,-490.0,0.00017424,2]
[365188783,1749525082514,-626.05939298,0.00017424,2]
[365188784,1749525082524,-490.0,0.00017424,2]
[365188785,1749525082533,-490.0,0.00017424,2]
[365188786,1749525082543,-1761.99,0.00017424,2]
[365188787,1749525082553,-498.01,0.00017424,2]
[365188788,1749525082563,-490.0,0.00017424,2]
[365188789,1749525082573,-626.78,0.00017424,2]
[365188790,1749525082582,-490.0,0.00017424,2]
[365188791,1749525082596,-2487.15,0.00017424,2]
[365188792,1749525082606,-490.0,0.00017424,2]
[365188793,1749525082615,-490.0,0.00017424,2]
[365188794,1749525082625,-542.12574744,0.00017424,2]
[365188795,1749525082635,-490.0,0.00017424,2]
[365188796,1749525082645,-490.0,0.00017424,2]
[365188797,1749525082654,-490.0,0.00017424,2]
[365188798,1749525082664,-490.0,0.00017424,2]
[365188799,1749525082674,-996.35,0.00017424,2]
[365188800,1749525082683,-591.43,0.00017424,2]
[365188801,1749525082693,-490.0,0.00017424,2]
[365188802,1749525082702,-553.91,0.00017424,2]
[365188803,1749525082711,-490.0,0.00017424,2]
[365188804,1749525082721,-490.0,0.00017424,2]
[365188805,1749525082731,-490.0,0.00017424,2]
[365188806,1749525082740,-490.0,0.00017424,2]
[365188807,1749525082749,-490.0,0.00017424,2]
[365188808,1749525082759,-490.0,0.00017424,2]
[365188809,1749525082768,-490.0,0.00017424,2]
[365188810,1749525082778,-490.0,0.00017424,2]
[365188811,1749525082787,-490.0,0.00017424,2]
[365188812,1749525082797,-673.4,0.00017424,2]
[365188813,1749525082807,-603.485695,0.00017424,2]
[365188814,1749525082817,-490.0,0.00017424,2]
[365188815,1749525082827,-490.0,0.00017424,2]
[365188816,1749525082836,-595.43,0.00017424,2]
[365188817,1749525082846,-497.32114406,0.00017424,2]
[365188818,1749525082856,-442.50494206,0.00017424,2]
[365188819,1749525082865,-1580.0,0.00017424,2]
[365188820,1749525082875,-3953.88,0.00017424,2]
[365188821,1749525082885,-605.59,0.00017424,2]
[365188822,1749525082894,-490.0,0.00017424,2]
[365188823,1749525082904,-490.0,0.00017424,2]
[365188824,1749525082913,-490.0,0.00017424,2]
[365188825,1749525082922,-352.76454895,0.00017424,2]
[365188826,1749525082932,-490.0,0.00017424,2]
[365188827,1749525082941,-490.0,0.00017424,2]
[365188828,1749525082951,-490.0,0.00017424,2]
[365188829,1749525082960,-490.0,0.00017424,2]
[365188830,1749525082971,-1687.14,0.00017424,2]
[365188831,1749525082980,-436.43050523,0.00017424,2]
[365188832,1749525082989,-490.0,0.00017424,2]
[365188833,1749525082999,-490.0,0.00017424,2]
[365188834,1749525083009,-835.39,0.00017424,2]
[365188835,1749525083020,-485.48752809,0.00017424,2]
[365188836,1749525083030,-490.0,0.00017424,2]
[365188837,1749525083040,-988.78,0.00017424,2]
[365188838,1749525083050,-509.02,0.00017424,2]
[365188839,1749525083060,-490.0,0.00017424,2]
[365188840,1749525083070,-490.0,0.00017424,2]
[365188841,1749525083080,-490.0,0.00017424,2]
[365188842,1749525083091,-520.99,0.00017424,2]
[365188843,1749525083101,-490.0,0.00017424,2]
[365188844,1749525083111,-490.0,0.00017424,2]
[365188845,1749525083121,-490.0,0.00017424,2]
[365188846,1749525083131,-490.0,0.00017424,2]
[365188847,1749525083141,-490.0,0.00017424,2]
[365188848,1749525083151,-490.0,0.00017424,2]
[365188849,1749525083161,-490.0,0.00017424,2]
[365188850,1749525083171,-490.0,0.00017424,2]
[365188851,1749525083182,-490.0,0.00017424,2]
[365188852,1749525083192,-874.46,0.00017424,2]
[365188853,1749525083203,-490.0,0.00017424,2]
[365188854,1749525083212,-490.0,0.00017424,2]
[365188855,1749525083222,-1615.08,0.00017424,2]
[365188856,1749525083231,-490.0,0.00017424,2]
[365188857,1749525083241,-490.0,0.00017424,2]
[365188858,1749525083250,-529.84,0.00017424,2]
[365188859,1749525083260,-483.38352889,0.00017424,2]
[365188860,1749525083269,-1075.4,0.00017424,2]
[365188861,1749525083279,-655.8,0.00017424,2]
[365188862,1749525083289,-490.0,0.00017424,2]
[365188863,1749525083298,-553.14,0.00017424,2]
[365188864,1749525083308,-709.07,0.00017424,2]
[365188865,1749525083320,-1655.79,0.00017424,2]
[365188866,1749525083330,-490.0,0.00017424,2]
[365188867,1749525083340,-2379.12,0.00017424,2]
[365188868,1749525083350,-490.0,0.00017424,2]
[365188869,1749525083359,-490.0,0.00017424,2]
[365188870,1749525083368,-637.09,0.00017424,2]
[365188871,1749525083378,-1068.67,0.00017424,2]
[365188872,1749525083389,-453.84965223,0.00017424,2]
[365188873,1749525083398,-490.0,0.00017424,2]
[365188874,1749525083407,-490.0,0.00017424,2]
[365188875,1749525083417,-490.0,0.00017424,2]
[365188876,1749525083427,-927.29,0.00017424,2]
[365188877,1749525083437,-490.0,0.00017424,2]
[365188878,1749525083447,-739.16,0.00017424,2]
[365188879,1749525083457,-848.47,0.00017424,2]
[365188880,1749525083467,-490.0,0.00017424,2]
[365188881,1749525083478,-490.0,0.00017424,2]
[365188882,1749525083488,-490.0,0.00017424,2]
[365188883,1749525083498,-490.0,0.00017424,2]
[365188884,1749525083508,-403.72,0.00017424,2]
[365188885,1749525083518,-490.0,0.00017424,2]
[365188886,1749525083527,-1641.81,0.00017424,2]
[365188887,1749525083537,-2238.41,0.00017424,2]
[365188888,1749525083548,-490.0,0.00017424,2]
[365188889,1749525083558,-490.0,0.00017424,2]
[365188890,1749525083567,-659.57,0.00017424,2]
[365188891,1749525083577,-490.0,0.00017424,2]
[365188892,1749525083587,-490.0,0.00017424,2]
[365188893,1749525083601,-410.21191403,0.00017424,2]
[365188894,1749525083611,-1065.02,0.00017424,2]
[365188895,1749525083621,-1338.38,0.00017424,2]
[365188896,1749525083632,-490.0,0.00017424,2]
[365188897,1749525083643,-490.0,0.00017424,2]
[365188898,1749525083652,-455.74491184,0.00017424,2]
[365188899,1749525083662,-517.01600954,0.00017424,2]
[365188900,1749525083672,-490.0,0.00017424,2]
[365188901,1749525083682,-490.0,0.00017424,2]
[365188902,1749525083692,-332.19522075,0.00017424,2]
[365188903,1749525083702,-490.0,0.00017424,2]
[365188904,1749525083712,-490.0,0.00017424,2]
[365188905,1749525083721,-897.68,0.00017424,2]
[365188906,1749525083731,-490.0,0.00017424,2]
[365188907,1749525083740,-490.0,0.00017424,2]
[365188908,1749525083750,-517.29,0.00017424,2]
[365188909,1749525083760,-490.0,0.00017424,2]
[365188910,1749525083770,-639.59,0.00017424,2]
[365188911,1749525083779,-490.0,0.00017424,2]
[365188912,1749525083788,-490.0,0.00017424,2]
[365188913,1749525083798,-490.0,0.00017424,2]
[365188914,1749525083807,-490.0,0.00017424,2]
[365188915,1749525083817,-490.0,0.00017424,2]
[365188916,1749525083827,-490.0,0.00017424,2]
[365188917,1749525083836,-1634.79,0.00017424,2]
[365188918,1749525083846,-795.78,0.00017424,2]
[365188919,1749525083855,-490.0,0.00017424,2]
[365188920,1749525083865,-490.0,0.00017424,2]
[365188921,1749525083874,-490.0,0.00017424,2]
[365188922,1749525083883,-466.68945178,0.00017424,2]
[365188923,1749525083893,-499.37,0.00017424,2]
[365188924,1749525083903,-1983.09,0.00017424,2]
[365188925,1749525083912,-490.0,0.00017424,2]
[365188926,1749525083921,-490.0,0.00017424,2]
[365188927,1749525083932,-490.0,0.00017424,2]
[365188928,1749525083941,-1184.87,0.00017424,2]
[365188929,1749525083950,-42056.12,0.00017424,2]
[365188930,1749525083960,-490.0,0.00017424,2]
[365188931,1749525083969,-490.0,0.00017424,2]
[365188932,1749525083979,-490.0,0.00017424,2]
[365188933,1749525083989,-490.0,0.00017424,2]
[365188934,1749525083998,-490.0,0.00017424,2]
[365188935,1749525084007,-490.0,0.00017424,2]
[365188936,1749525084017,-490.0,0.00017424,2]
[365188937,1749525084026,-605.98,0.00017424,2]
[365188938,1749525084035,-491.03,0.00017424,2]
[365188939,1749525084044,-611.73,0.00017424,2]
[365188940,1749525084054,-497.21,0.00017424,2]
[365188941,1749525084064,-165.509118,0.00017424,2]
[365188942,1749525084073,-730.26,0.00017424,2]
[365188943,1749525084083,-1437.03,0.00017424,2]
[365188944,1749525084093,-490.0,0.00017424,2]
[365188945,1749525084105,-4445.982985,0.00017424,2]